bitfinex-derivatives/quotes_SOLF0:USTF0_20250202
["timestamp","ask_amount","ask_price","bid_price","bid_amount"]
[1738510291461,7.313e-05,210.35,210.3,15.06530416]
[1738510291658,1.548,210.44,210.3,15.06530416]
[1738510292160,1.5022,210.48,210.3,15.06530416]
[1738510292360,1.5022,210.48,210.34,15.06530416]
[1738510292563,1.5022,210.48,210.39,4.7545]
[1738510292763,1.5022,210.48,210.34,24.41963761]
[1738510292764,0.03452108,210.41,210.37,0.03176292]
[1738510292963,1.5022,210.48,210.3,24.41963761]
[1738510293262,0.03593219,210.41,210.37,0.03482495]
[1738510293463,0.03593219,210.41,210.26,24.41963761]
[1738510293669,24.41963761,210.45,210.26,24.41963761]
[1738510294167,24.41963761,210.41,210.22,24.41963761]
[1738510294362,4.9672,210.4,210.22,24.41963761]
[1738510294870,4.9672,210.4,210.29,0.03116268]
[1738510294871,0.03044062,210.33,210.29,0.03116268]
[1738510297869,0.03044062,210.33,210.31,4.7564]
[1738510298970,0.03044062,210.33,210.29,4.78796268]
[1738510299170,0.03044062,210.33,210.29,0.03116268]
[1738510299361,4.062e-05,210.33,210.3,24.41963761]
[1738510299562,4.062e-05,210.33,210.31,4.7564]
[1738510300970,24.41963761,210.55,210.32,24.41963761]
[1738510301265,6.2851,210.56,210.44,24.41963761]
[1738510301670,1.5342,210.56,210.46,4.7529]
[1738510301870,4.7519,210.52,210.44,24.41963761]
[1738510302169,0.03331006,210.53,210.49,0.03085383]
[1738510302568,4.78501006,210.53,210.49,0.03085383]
[1738510302970,0.03331006,210.53,210.49,0.03085383]
[1738510304971,4.7518,210.52,210.49,0.03085383]
[1738510305374,0.03331006,210.53,210.49,0.03085383]
[1738510305573,4.7518,210.52,210.49,0.03085383]
[1738510305872,24.45294767,210.53,210.36,24.41963761]
[1738510306073,1.446,210.52,210.36,24.41963761]
[1738510306777,4.7521,210.51,210.44,4.7535]
[1738510307071,1.446,210.52,210.44,4.7535]
[1738510307270,0.03312209,210.46,210.44,4.7535]
[1738510307665,1.32988439,210.57,210.48,4.7525]
[1738510307971,8.962e-05,210.47,210.44,24.41963761]
[1738510308469,1.5611,210.59,210.44,24.41963761]
[1738510308972,4.7516,210.53,210.44,24.41963761]
[1738510309174,1.5611,210.59,210.44,24.41963761]
[1738510309369,0.03247436,210.54,210.49,4.78807594]
[1738510309577,0.03247436,210.54,210.49,0.03567594]
[1738510309973,0.03247436,210.54,210.36,24.41963761]
[1738510310274,27.79963761,210.53,210.36,24.41963761]
[1738510310476,27.79963761,210.53,210.32,24.41963761]
[1738510310976,4.7533,210.45,210.38,4.7548]
[1738510311172,27.79963761,210.53,210.38,4.7548]
[1738510311476,0.03274692,210.45,210.4,0.03433482]
[1738510311676,4.7549,210.38,210.3,4.7565]
[1738510311880,2.9881,210.44,210.28,24.41963761]
[1738510312179,2.9881,210.44,210.23,0.0598]
[1738510313182,0.03307878,210.36,210.31,0.03459185]
[1738510313573,0.03307878,210.36,210.31,4.7564]
[1738510313878,0.03307878,210.36,210.31,4.7888648]
[1738510314474,0.03307878,210.36,210.31,0.0324648]
[1738510314975,0.03307878,210.36,210.18,25.24040389]
[1738510315276,24.41963761,210.33,210.14,24.41963761]
[1738510315479,3.0353,210.32,210.14,24.41963761]
[1738510315676,3.38,210.31,210.14,24.41963761]
[1738510316074,24.41963761,210.29,210.1,24.41963761]
[1738510316269,24.45138021,210.25,210.2,0.03490402]
[1738510316475,4.7595,210.18,210.09,4.7615]
[1738510316876,24.41963761,210.21,210.06,24.41963761]
[1738510317076,4.76,210.16,210.07,4.7618]
[1738510317379,24.41963761,210.21,210.06,24.41963761]
[1738510317680,0.03461044,210.14,210.12,4.7608]
[1738510317978,1.4375,210.24,210.11,24.41963761]
[1738510318178,1.4375,210.24,210.14,4.7603]
[1738510318179,0.03447121,210.15,210.14,4.7603]
[1738510318379,0.03447121,210.15,210.11,24.45002651]
[1738510318573,4.7584,210.23,210.11,24.41963761]
[1738510318770,0.0300348,210.15,210.12,4.7607]
[1738510318970,0.0300348,210.15,210.11,24.45187095]
[1738510319171,1.4375,210.24,210.11,24.41963761]
[1738510319380,0.03487834,210.15,210.11,0.03445609]
[1738510319576,0.03487834,210.15,210.03,24.41963761]
[1738510319775,4.76,210.16,210.03,24.41963761]
[1738510319974,4.76,210.16,210.11,0.03276781]
[1738510320373,0.03119022,210.12,209.99,24.41963761]
[1738510320773,1.4423,210.15,209.99,24.41963761]
[1738510320974,1.4423,210.15,209.95,24.41963761]
[1738510321180,24.41963761,210.12,209.95,24.41963761]
[1738510321677,0.0307089,210.06,209.95,24.41963761]
[1738510322682,0.0307089,210.06,209.99,24.41963761]
[1738510322883,0.0307089,210.06,210.01,4.7632]
[1738510323086,1.4423,210.15,210.03,24.41963761]
[1738510323381,1.4748,210.2,210.07,24.41963761]
[1738510323582,0.03089985,210.11,210.07,24.41963761]
[1738510323777,0.03089985,210.11,210.1,4.7613]
[1738510323983,1.4748,210.2,210.03,24.41963761]
[1738510324183,0.031471,210.13,209.99,24.41963761]
[1738510324682,3.42,210.15,210.03,24.41963761]
[1738510324878,0.03279704,210.08,210.0,4.7634]
[1738510325085,0.03279704,210.08,209.99,24.41963761]
[1738510325985,0.03279704,210.08,209.95,24.41963761]
[1738510326184,4.79459704,210.08,209.98,4.7638]
[1738510326383,1.4987,210.13,209.99,24.41963761]
[1738510326584,0.03213607,210.05,209.95,24.41963761]
[1738510326884,0.03213607,210.05,209.91,24.41963761]
[1738510327281,1.5585,210.07,209.91,24.41963761]
[1738510327482,0.03039032,210.0,209.87,24.41963761]
[1738510327986,4.7637,210.0,209.92,4.7653]
[1738510328186,0.03641221,209.96,209.92,4.7653]
[1738510328383,0.03641221,209.96,209.87,24.41963761]
[1738510328582,0.03641221,209.96,209.88,4.7661]
[1738510328781,0.03641221,209.96,209.87,24.41963761]
[1738510329086,0.03641221,209.96,209.88,4.7661]
[1738510329386,0.03641221,209.96,209.87,24.41963761]
[1738510329786,0.03641221,209.96,209.83,24.41963761]
[1738510330285,24.41963761,210.0,209.83,24.41963761]
[1738510330680,0.03337546,209.92,209.87,24.41963761]
[1738510330986,4.7636,210.0,209.9,4.7656]
[1738510331189,1.5034,210.02,209.87,24.41963761]
[1738510331488,0.03274543,209.92,209.87,24.41963761]
[1738510331686,1.5034,210.02,209.87,24.41963761]
[1738510331882,0.03062041,209.92,209.87,24.41963761]
[1738510332081,0.03062041,209.92,209.83,24.41963761]
[1738510332290,1.5034,210.02,209.76,0.8223777]
[1738510332291,24.41963761,209.97,209.79,24.41963761]
[1738510332588,0.03607082,209.87,209.79,24.41963761]
[1738510333487,0.03607082,209.87,209.76,0.8223777]
[1738510333688,4.80267082,209.87,209.8,4.7679]
[1738510333888,0.03607082,209.87,209.79,24.41963761]
[1738510334090,0.03607082,209.87,209.83,24.41963761]
[1738510334292,1.5034,210.02,209.83,24.41963761]
[1738510334483,1.5034,210.02,209.89,24.41963761]
[1738510334888,1.4954,210.06,209.97,24.41963761]
[1738510335084,3.026,210.1,209.97,24.41963761]
[1738510335393,3.026,210.1,210.01,24.41963761]
[1738510335595,0.03612137,210.06,210.01,0.03628143]
[1738510335989,0.03612137,210.06,210.01,24.45591904]
[1738510336194,0.03612137,210.06,210.01,0.03628143]
[1738510336994,0.03612137,210.06,209.93,24.41963761]
[1738510336995,0.03612137,210.06,209.93,8.50678321]
[1738510337195,0.03612137,210.06,209.93,24.41963761]
[1738510337395,4.762,210.07,209.99,4.7637]
[1738510337599,3.026,210.1,209.97,24.41963761]
[1738510337890,4.7617,210.09,210.01,4.7632]
[1738510338099,3.026,210.1,209.97,24.41963761]
[1738510338398,0.03593534,210.07,210.01,24.41963761]
[1738510338588,3.534e-05,210.07,210.05,29.18193761]
[1738510338793,94.3,210.23,210.05,24.41963761]
[1738510338992,2.8766,210.22,210.09,24.41963761]
[1738510339193,2.8766,210.22,210.05,24.41963761]
[1738510339396,24.41963761,210.21,210.05,24.41963761]
[1738510339793,24.41963761,210.21,210.01,24.41963761]
[1738510340093,2.8766,210.22,209.89,219.41963761]
[1738510340094,0.03414606,210.15,210.11,0.03187187]
[1738510340295,4.761,210.11,209.97,24.41963761]
[1738510340691,3.44,210.16,210.01,24.41963761]
[1738510341395,24.41963761,210.21,210.06,24.41963761]
[1738510341599,0.03079264,210.11,210.06,24.41963761]
[1738510341794,4.7595,210.18,210.08,4.7615]
[1738510341995,0.0308583,210.11,210.02,24.41963761]
[1738510342392,0.0308583,210.11,210.06,24.41963761]
[1738510343396,1.4418,210.22,210.1,24.41963761]
[1738510344194,27.83963761,210.33,210.14,24.41963761]
[1738510344397,0.03647255,210.18,210.14,0.03242329]
[1738510345001,1.5258,210.28,210.17,24.41963761]
[1738510345202,2.9812,210.3,210.17,24.41963761]
[1738510345699,2.9812,210.3,210.21,24.41963761]
[1738510345903,1.5258,210.38,210.21,24.41963761]
[1738510346103,1.5589,210.42,210.25,24.41963761]
[1738510346299,1.5589,210.42,210.32,4.7561]
[1738510346604,0.03647526,210.36,210.32,4.7561]
[1738510346804,0.03647526,210.36,210.25,24.41963761]
[1738510347102,1.5589,210.42,210.35,6.434e-05]
[1738510347295,1.5589,210.42,210.25,24.41963761]
[1738510347896,4.7544,210.41,210.32,4.7562]
[1738510348100,1.5589,210.42,210.29,24.41963761]
[1738510348302,0.03046412,210.36,210.31,0.03452837]
[1738510348701,0.03046412,210.36,210.33,24.41963761]
[1738510349005,4.7527,210.48,210.4,4.7543]
[1738510349609,6.1971,210.5,210.42,4.7539]
[1738510349804,1.4448,210.5,210.37,24.41963761]
[1738510350109,4.7532,210.46,210.44,0.03443906]
[1738510350311,0.03415938,210.48,210.44,0.03443906]
[1738510352401,4.78695938,210.48,210.44,0.03443906]
[1738510352809,4.753,210.47,210.44,0.03443906]
[1738510353006,0.03415938,210.48,210.44,0.03443906]
[1738510353406,4.7532,210.46,210.44,0.03443906]
[1738510353909,0.03415938,210.48,210.32,24.41963761]
[1738510354108,0.03415938,210.48,210.32,29.17573761]
[1738510354311,3.42,210.49,210.32,24.41963761]
[1738510354811,3.42,210.49,210.34,4.7558]
[1738510355010,3.42,210.49,210.32,24.41963761]
[1738510355310,0.03308516,210.44,210.39,0.03273878]
[1738510355605,4.7539,210.43,210.39,0.03273878]
[1738510356012,4.7544,210.41,210.39,0.03273878]
[1738510356310,24.41963761,210.43,210.28,24.41963761]
[1738510356511,25.87803761,210.43,210.28,24.41963761]
[1738510357208,24.41963761,210.47,210.28,24.41963761]
[1738510357411,1.4584,210.48,210.36,24.41963761]
[1738510357719,4.7524,210.5,210.4,24.41963761]
[1738510358009,0.03512939,210.44,210.4,24.41963761]
[1738510358316,0.03512939,210.44,210.42,4.7539]
[1738510359011,0.03512939,210.44,210.36,24.41963761]
[1738510359411,0.03512939,210.44,210.32,24.41963761]
[1738510359809,0.03512939,210.44,210.28,24.41963761]
[1738510360012,0.03512939,210.44,210.3,4.7566]
[1738510360212,24.41963761,210.47,210.28,24.41963761]
[1738510360413,0.03603249,210.39,210.24,24.41963761]
[1738510360611,24.4556701,210.39,210.24,24.41963761]
[1738510360818,1.5217,210.38,210.2,24.41963761]
[1738510361011,0.03542395,210.34,210.2,24.41963761]
[1738510361220,0.03542395,210.34,210.29,24.41963761]
[1738510361516,1.5565,210.42,210.29,24.41963761]
[1738510361713,1.5655,210.47,210.33,24.41963761]
[1738510361911,1.5655,210.47,210.37,24.41963761]
[1738510362116,2.9418,210.53,210.37,24.41963761]
[1738510362411,4.7531,210.47,210.39,4.7546]
[1738510363014,0.03053343,210.45,210.41,0.03484126]
[1738510363713,4.7536,210.44,210.41,0.03484126]
[1738510363920,0.03053343,210.45,210.41,0.03484126]
[1738510364820,0.03053343,210.45,210.28,24.41963761]
[1738510365112,24.41963761,210.51,210.32,24.41963761]
[1738510365318,2.9418,210.53,210.36,24.41963761]
[1738510365820,4.7528,210.48,210.39,4.7545]
[1738510366020,2.9418,210.53,210.36,24.41963761]
[1738510366216,0.03106957,210.47,210.36,24.41963761]
[1738510366418,0.03106957,210.47,210.4,4.7542]
[1738510366920,4.7537,210.44,210.36,4.7553]
[1738510367121,0.03106957,210.47,210.32,24.41963761]
[1738510367317,24.41963761,210.51,210.32,24.41963761]
[1738510367523,0.03452828,210.42,210.36,4.7553]
[1738510367819,0.03452828,210.42,210.32,24.41963761]
[1738510368123,4.78872828,210.42,210.32,4.7562]
[1738510368323,0.03452828,210.42,210.28,24.41963761]
[1738510368819,4.7549,210.38,210.28,24.41963761]
[1738510369124,0.03034623,210.37,210.28,24.41963761]
[1738510370725,0.03034623,210.37,210.33,4.756]
[1738510371024,0.03034623,210.37,210.28,24.41963761]
[1738510371226,0.03034623,210.37,210.36,4.7554]
[1738510371431,6.3618,210.53,210.36,24.41963761]
[1738510371730,4.7531,210.46,210.4,4.7544]
[1738510372023,4.7531,210.46,210.36,24.41963761]
[1738510372230,6.3618,210.53,210.36,24.41963761]
[1738510372425,4.7533,210.46,210.39,4.7547]
[1738510372729,4.7533,210.46,210.42,0.03305944]
[1738510373429,0.03328712,210.47,210.42,0.03305944]
[1738510373725,0.03328712,210.47,210.28,24.41963761]
[1738510374121,4.7546,210.4,210.28,24.41963761]
[1738510374329,24.41963761,210.5,210.28,24.41963761]
[1738510374632,24.41963761,210.46,210.28,24.41963761]
[1738510374933,0.03146963,210.41,210.24,24.41963761]
[1738510375147,0.03146963,210.41,210.28,24.41963761]
[1738510375426,24.41963761,210.5,210.28,24.41963761]
[1738510375631,0.03138391,210.37,210.28,24.41963761]
[1738510376031,24.41963761,210.46,210.28,24.41963761]
[1738510376227,0.03640675,210.35,210.28,24.41963761]
[1738510376433,0.03640675,210.35,210.18,0.82069454]
[1738510376434,4.7561,210.33,210.27,4.7574]
[1738510376729,27.83963761,210.42,210.18,0.82069454]
[1738510376730,24.41963761,210.38,210.2,24.41963761]
[1738510376930,4.7576,210.27,210.18,5.57999454]
[1738510377133,0.033358,210.32,210.18,0.82069454]
[1738510377437,4.7572,210.28,210.2,4.7589]
[1738510377632,0.03382671,210.27,210.18,0.82069454]
[1738510378031,0.03382671,210.27,210.23,4.7582]
[1738510378326,0.03382671,210.27,210.24,24.41963761]
[1738510378734,1.5468,210.4,210.24,24.41963761]
[1738510379325,1.5468,210.4,210.28,24.41963761]
[1738510379830,4.7552,210.37,210.29,4.7567]
[1738510380025,0.03467675,210.36,210.32,0.03062941]
[1738510380434,0.03467675,210.36,210.34,4.7557]
[1738510380636,0.03467675,210.36,210.32,24.45026702]
[1738510380930,63.47682352,210.44,210.32,24.45026702]
[1738510381126,4.4286,210.52,210.37,24.41963761]
[1738510381531,4.7523,210.5,210.41,4.7541]
[1738510381731,4.4286,210.52,210.41,4.7541]
[1738510381732,4.4286,210.52,210.41,24.41963761]
[1738510382125,4.4286,210.52,210.46,4.753]
[1738510382333,0.0355853,210.49,210.44,0.03423106]
[1738510383333,24.41963761,210.58,210.44,0.03423106]
[1738510383540,6.29521976,210.66,210.54,24.41963761]
[1738510384431,6.29521976,210.66,210.58,4.7503]
[1738510384631,0.03321976,210.62,210.58,0.0302818]
[1738510385536,4.7478,210.7,210.62,4.7494]
[1738510385741,28.99453761,210.8,210.62,24.41963761]
[1738510386039,4.7474,210.72,210.63,4.7492]
[1738510386236,28.99453761,210.8,210.62,24.41963761]
[1738510386838,0.03415532,210.73,210.69,0.03558675]
[1738510387632,4.78125532,210.73,210.69,0.03558675]
[1738510387939,0.03415532,210.73,210.69,0.03558675]
[1738510388640,0.03415532,210.73,210.58,24.41963761]
[1738510388836,24.41963761,210.76,210.58,29.16993761]
[1738510389037,24.41963761,210.76,210.58,24.41963761]
[1738510389535,4.7469,210.74,210.64,4.7489]
[1738510389736,0.03541229,210.69,210.65,0.03638352]
[1738510389941,4.5749,210.8,210.66,24.41963761]
[1738510390333,4.5749,210.8,210.71,24.41963761]
[1738510390334,3.0195,210.8,210.71,24.41963761]
[1738510390535,4.7449,210.83,210.71,24.41963761]
[1738510390741,3.0629,210.86,210.75,24.41963761]
[1738510390938,3.0629,210.86,210.78,4.7458]
[1738510391240,3.0629,210.86,210.78,0.03315646]
[1738510391241,0.03175128,210.83,210.78,0.03315646]
[1738510391442,0.03175128,210.83,210.81,4.7451]
[1738510392042,0.00615128,210.83,210.81,4.7451]
[1738510392237,2.9932,210.96,210.86,4.744]
[1738510392437,2.9932,210.96,210.83,24.41963761]
[1738510393240,1.5392,210.96,210.89,4.7433]
[1738510393540,0.03377817,210.92,210.89,4.7433]
[1738510393743,0.03377817,210.92,210.91,4.743]
[1738510394138,0.03377817,210.92,210.91,29.16263761]
[1738510394333,0.03377817,210.92,210.87,0.03630505]
[1738510394334,0.03377817,210.92,210.87,24.45594266]
[1738510394540,0.03377817,210.92,210.87,0.03630505]
[1738510396146,0.03377817,210.92,210.87,24.45594266]
[1738510396345,0.03377817,210.92,210.91,24.41963761]
[1738510396641,2.9932,211.03,210.91,24.41963761]
[1738510396841,2.9932,211.03,210.87,24.45594266]
[1738510397045,4.7418,210.97,210.83,29.16433761]
[1738510397345,24.41963761,210.98,210.79,24.41963761]
[1738510397741,24.41963761,210.94,210.79,24.41963761]
[1738510398045,0.03513568,210.91,210.86,0.0344317]
[1738510398243,4.7435,210.89,210.86,0.0344317]
[1738510398447,4.7435,210.89,210.79,24.41963761]
[1738510398943,0.03091432,210.9,210.85,0.03327929]
[1738510399747,0.03091432,210.9,210.87,24.41963761]
[1738510400147,0.03091432,210.9,210.88,4.7435]
[1738510400347,0.03091432,210.9,210.85,0.03327929]
[1738510401245,4.7436,210.89,210.85,0.03327929]
[1738510401441,0.03091432,210.9,210.85,0.03327929]
[1738510401949,4.744,210.87,210.85,0.03327929]
[1738510402349,0.03091432,210.9,210.85,0.03327929]
[1738510402542,4.77421432,210.9,210.85,0.03327929]
[1738510402747,0.03091432,210.9,210.85,0.03327929]
[1738510403148,1.5554,211.01,210.87,24.41963761]
[1738510403345,1.5554,211.01,210.91,24.41963761]
[1738510404054,4.7414,210.98,210.91,29.16253761]
[1738510404351,1.5392,211.03,210.87,24.41963761]
[1738510404545,0.03249926,210.97,210.93,24.41963761]
[1738510404743,0.03249926,210.97,210.94,4.7422]
[1738510404943,0.03249926,210.97,210.92,0.03257154]
[1738510405245,4.7423,210.95,210.92,0.03257154]
[1738510405449,0.03249926,210.97,210.92,0.03257154]
[1738510406746,3.47249926,210.97,210.8,0.1139]
[1738510406945,1.5233,210.96,210.8,0.1139]
[1738510407148,4.7429,210.92,210.85,4.7443]
[1738510407954,0.03225751,210.91,210.86,0.03238254]
[1738510408153,0.03225751,210.91,210.86,24.45202015]
[1738510408653,0.03225751,210.91,210.86,0.03238254]
[1738510408852,0.03225751,210.91,210.87,24.41963761]
[1738510410157,0.03225751,210.91,210.86,0.03238254]
[1738510410756,4.7437,210.88,210.86,0.03238254]
[1738510410956,0.03225751,210.91,210.86,0.03238254]
[1738510411153,0.03225751,210.91,210.75,24.41963761]
[1738510411154,3.45225751,210.91,210.75,24.41963761]
[1738510411349,2.9508,210.9,210.75,24.41963761]
[1738510411652,24.41963761,210.87,210.71,24.41963761]
[1738510412549,0.03579367,210.81,210.77,7.02e-06]
[1738510412748,4.7459,210.78,210.77,7.02e-06]
[1738510413054,4.7459,210.78,210.67,24.41963761]
[1738510413457,4.7465,210.76,210.67,24.41963761]
[1738510413956,0.03422366,210.75,210.7,0.03600097]
[1738510415258,0.03422366,210.75,210.7,4.78360097]
[1738510415459,0.03422366,210.75,210.7,0.03600097]
[1738510415660,0.03422366,210.75,210.71,24.41963761]
[1738510415964,3.44,210.88,210.71,24.41963761]
[1738510416260,3.44,210.88,210.75,24.41963761]
[1738510416660,4.7437,210.88,210.75,24.41963761]
[1738510416861,4.4614,210.9,210.75,24.41963761]
[1738510417360,0.03436647,210.85,210.8,0.0318611]
[1738510417760,0.03436647,210.85,210.8,4.7771611]
[1738510417964,0.03436647,210.85,210.8,0.0318611]
[1738510418864,0.03436647,210.85,210.83,4.7447]
[1738510419870,1.4747,210.97,210.83,24.41963761]
[1738510420058,4.3644,210.97,210.83,24.41963761]
[1738510420259,4.3644,210.97,210.86,4.744]
[1738510420763,4.3644,210.97,210.83,24.41963761]
[1738510420965,4.7428,210.92,210.84,4.7443]
[1738510421264,4.7428,210.92,210.89,0.03636699]
[1738510421560,4.77705318,210.94,210.89,0.03636699]
[1738510421762,0.03465318,210.94,210.79,24.41963761]
[1738510421966,24.45429079,210.94,210.75,24.41963761]
[1738510422166,24.41963761,210.94,210.8,4.7454]
[1738510422367,24.41963761,210.94,210.75,24.41963761]
[1738510422666,4.7446,210.84,210.76,4.7462]
[1738510422868,24.41963761,210.94,210.75,24.41963761]
[1738510423166,0.03457508,210.87,210.82,0.03327787]
[1738510423564,0.03457508,210.87,210.71,24.41963761]
[1738510423963,4.7455,210.8,210.71,24.41963761]
[1738510424266,3.42,210.87,210.67,24.60163761]
[1738510424267,25.94763761,210.86,210.67,24.60163761]
[1738510424469,4.7462,210.77,210.69,4.7478]
[1738510424665,4.7462,210.77,210.67,24.60163761]
[1738510424870,0.03080179,210.75,210.71,0.03618736]
[1738510426562,4.7471,210.73,210.71,0.03618736]
[1738510426767,0.03080179,210.75,210.59,24.41963761]
[1738510426974,1.45240179,210.75,210.59,24.41963761]
[1738510427164,4.7474,210.72,210.59,24.41963761]
[1738510427373,1.4216,210.75,210.63,24.41963761]
[1738510427776,1.4216,210.75,210.59,24.41963761]
[1738510428076,0.0332966,210.71,210.67,0.03262033]
[1738510429280,0.0332966,210.71,210.67,24.45225794]
[1738510429574,0.0332966,210.71,210.69,4.7478]
[1738510430878,0.0332966,210.71,210.67,0.03262033]
[1738510431872,0.0332966,210.71,210.68,4.7481]
[1738510432077,0.0332966,210.71,210.67,0.03262033]
[1738510432468,0.0332966,210.71,210.67,4.78082033]
[1738510432777,0.0332966,210.71,210.67,0.03262033]
[1738510433877,4.7809966,210.71,210.67,0.03262033]
[1738510434778,0.0332966,210.71,210.67,0.03262033]
[1738510435083,0.0332966,210.71,210.67,24.45225794]
[1738510435374,0.0332966,210.71,210.7,4.7477]
[1738510435575,0.0332966,210.71,210.67,24.45225794]
[1738510436678,0.0332966,210.71,210.7,4.7477]
[1738510438379,9.66e-05,210.71,210.7,4.7477]
[1738510439276,9.66e-05,210.71,210.67,24.45225794]
[1738510439778,9.66e-05,210.71,210.69,4.7477]
[1738510440073,9.66e-05,210.71,210.67,24.45225794]
[1738510440074,9.66e-05,210.71,210.67,0.03262033]
[1738510440281,9.66e-05,210.71,210.59,24.41963761]
[1738510440472,9.66e-05,210.71,210.55,24.41963761]
[1738510440671,4.749,210.64,210.59,4.7499]
[1738510440979,27.81963761,210.71,210.51,24.41963761]
[1738510441176,1.4732,210.63,210.55,24.41963761]
[1738510441380,24.41963761,210.79,210.59,24.41963761]
[1738510441579,1.5584,210.78,210.63,24.41963761]
[1738510441776,0.03358081,210.71,210.67,24.41963761]
[1738510441976,1.4732,210.81,210.68,0.03474316]
[1738510442171,1.5584,210.89,210.73,24.41963761]
[1738510442476,25.18087904,210.85,210.73,24.41963761]
[1738510442681,25.18087904,210.85,210.77,24.41963761]
[1738510442873,25.18087904,210.85,210.83,4.7447]
[1738510443077,65.7655515,210.86,210.81,24.41963761]
[1738510443276,65.79993806,210.86,210.85,24.41963761]
[1738510443570,57.16363806,210.86,210.85,29.16393761]
[1738510443776,25.78298334,210.86,210.85,29.16393761]
[1738510444374,25.78298334,210.86,210.85,24.41963761]
[1738510444881,6.2458,210.98,210.85,24.41963761]
[1738510445079,2.9021,210.99,210.89,24.41963761]
[1738510445681,1.5043,211.08,210.93,24.41963761]
[1738510445880,1.4148,211.07,210.93,24.41963761]
[1738510446084,4.7406,211.02,210.98,0.03043388]
[1738510446283,0.03207394,211.03,210.98,0.03043388]
[1738510446787,4.7411,211.0,210.98,0.03043388]
[1738510447175,0.03207394,211.03,210.98,0.03043388]
[1738510448084,4.77237394,211.03,210.98,0.03043388]
[1738510448274,0.03207394,211.03,210.98,0.03043388]
[1738510451386,0.03207394,211.03,211.01,24.41963761]
[1738510452190,0.03207394,211.03,211.01,29.16023761]
[1738510452890,0.03207394,211.03,211.01,24.41963761]
[1738510453187,0.03207394,211.03,210.98,0.03043388]
[1738510453483,0.03207394,211.03,210.98,4.77173388]
[1738510453685,0.03207394,211.03,211.01,24.41963761]
[1738510454090,0.03207394,211.03,211.01,29.16033761]
[1738510455301,0.03207394,211.03,211.01,24.41963761]
[1738510455591,0.03207394,211.03,210.98,0.03043388]
[1738510456981,4.7411,211.0,210.98,0.03043388]
[1738510457186,0.03207394,211.03,210.88,24.41963761]
[1738510457586,4.7419,210.96,210.9,4.7432]
[1738510457793,25.89463761,211.06,210.88,24.41963761]
[1738510458288,25.89463761,211.06,210.93,4.7424]
[1738510458587,0.03317557,210.99,210.95,0.03476454]
[1738510460092,0.03317557,210.99,210.96,24.41963761]
[1738510460291,0.03317557,210.99,210.96,29.16143761]
[1738510460492,0.03317557,210.99,210.96,24.41963761]
[1738510461186,0.03317557,210.99,210.97,4.7416]
[1738510461399,7.557e-05,210.99,210.97,4.7416]
[1738510463591,7.557e-05,210.99,210.95,0.03476454]
[1738510464287,7.557e-05,210.99,210.84,24.41963761]
[1738510464689,1.4165,211.0,210.84,24.41963761]
[1738510464888,1.4908,210.99,210.84,24.41963761]
[1738510465293,4.7425,210.94,210.88,4.7436]
[1738510465491,4.7425,210.94,210.89,0.03397609]
[1738510465797,4.7426,210.93,210.89,0.03397609]
[1738510465992,0.03335354,210.94,210.89,0.03397609]
[1738510466597,4.7431,210.91,210.89,0.03397609]
[1738510466894,0.03335354,210.94,210.89,0.03397609]
[1738510467995,5.354e-05,210.94,210.92,24.41963761]
[1738510468600,1.4858,211.07,210.92,24.41963761]
[1738510468801,1.4858,211.07,210.96,24.41963761]
[1738510469003,6.2254,211.07,210.99,4.7411]
[1738510469198,1.4858,211.07,210.96,24.41963761]
[1738510469698,1.4858,211.07,210.99,0.03001872]
[1738510469699,0.03257919,211.04,210.99,0.03001872]
[1738510470900,4.7405,211.02,210.99,0.03001872]
[1738510471099,0.03257919,211.04,210.99,0.03001872]
[1738510471294,4.77277919,211.04,210.99,0.03001872]
[1738510471494,0.03257919,211.04,210.99,0.03001872]
[1738510475302,4.7407,211.01,210.99,0.03001872]
[1738510475705,0.03257919,211.04,210.91,24.41963761]
[1738510476002,1.4858,211.07,210.91,24.41963761]
[1738510476606,1.4858,211.07,210.87,24.41963761]
[1738510477103,0.03301355,210.99,210.95,0.03416956]
[1738510477302,0.03301355,210.99,210.83,24.41963761]
[1738510477609,1.475,210.99,210.83,24.41963761]
[1738510477809,1.475,210.99,210.87,24.41963761]
[1738510478105,6.2162,210.99,210.93,4.7425]
[1738510478300,1.475,210.99,210.87,24.41963761]
[1738510478508,0.03398729,210.98,210.94,0.030073]
[1738510478707,0.03398729,210.98,210.96,4.7418]
[1738510478898,1.4858,211.07,210.96,4.7418]
[1738510479103,1.4858,211.07,211.0,24.41963761]
[1738510479305,1.4858,211.07,211.03,4.7402]
[1738510479704,1.4858,211.07,211.0,24.41963761]
[1738510479908,1.475,211.12,211.0,24.41963761]
[1738510480204,0.03364579,211.08,211.04,0.03166954]